[Event "1st Chessable Sunway Formentera 2022"]
[Site "Formentera Punta Prima"]
[Date "2022.04.30"]
[Round "2"]
[White "Eugene, Floryan"]
[Black "Prodhomme, Boris"]
[Result "1-0"]
[ECO "A89"]
[WhiteElo "2370"]
[BlackElo "2045"]
[Annotator "TA"]
[PlyCount "71"]
[EventDate "2022.05.05"]
[EventType "swiss"]
[EventCountry "ESP"]
[SourceTitle "playchess.com"]
[Source "ChessBase"]
[SourceQuality "1"]
[TimeControl "40/5400+30:1800+30"]

{[%evp 26,71,0,0,0,0,-15,-10,1,0,0,-15,8,10,63,42,88,87,462,471,406,179,175,85,128,122,466,347,485,477,621,614,722,718,714,711,701,703,667,665,632,598,585,585,565,564,622,622]} 1. c4 {[%emt 0:00:08]} g6 {[%emt 0:00:29]} 2. g3 {[%emt 0:00:25]} Bg7 {[%emt 0:00:12]} 3. Bg2 {[%emt 0:00:35]} d6 {[%emt 0:00:57]} 4. Nf3 {[%emt 0:09:21]} f5 {[%emt 0:11:42]} 5. d4 {[%emt 0:03:16]} Nf6 {[%emt 0:01:12]} 6. Nc3 {[%emt 0:01:11]} O-O {[%emt 0:00:45]} 7. O-O {[%emt 0:00:55]} Nc6 {[%emt 0:06:51]} 8. d5 {[%emt 0:11:05]} Ne5 {[%emt 0:05:35]} 9. Nxe5 {[%emt 0:02:16]} dxe5 {[%emt 0:00:05]} 10. e4 {[%emt 0:00:29]} f4 {[%emt 0:04:39]} 11. gxf4 {[%emt 0:40:05]} exf4 {[%emt 0:01:46]} 12. e5 {[%emt 0:05:31]} Ng4 {[%emt 0:22:12]} 13. e6 {[%emt 0:00:08]} Ne5 {[%emt 0:15:24]} 14. Re1 $1 {[%emt 0:00:10]} Nxc4 {[%emt 0:15:00][%cal Oc7c6] A89: Dutch Defence: Leningrad System: 5 Nf3 0-0 6 0-0 d6 7 Nc3 Nc6.} 15. Re4 {[%emt 0:00:24][%csl LRc4,LRf4]} Nd6 {[%emt 0:00:49]} 16. Rxf4 {[%emt 0:03:00]} Nf5 {[%emt 0:00:58][%cal Oc7c6] [#] The position is equal.} 17. Re4 $146 {[%emt 0:08:40]} ({Predecessor:} 17. h4 Bxc3 18. bxc3 Bxe6 19. Qb3 Bf7 20. Ba3 c6 21. c4 Qc7 22. Rxf5 gxf5 23. d6 exd6 {1-0 (47) Bogdan,E (2016)-Uzlavataya,A (1979) Minsk 2015}) 17... c6 {[%emt 0:02:24]} 18. Bg5 {[%emt 0:00:36]} h6 {[%emt 0:04:58]} ({Resist} 18... Bxc3 19. bxc3 h6 20. Bc1) 19. Bf4 {[%emt 0:00:16]} Bxc3 {[%emt 0:01:25]} ({Better is} 19... Kh7 $11) 20. bxc3 $14 {[%emt 0:00:08]} cxd5 {[%emt 0:00:13]} (20... Qxd5 $14 {might be stronger.} 21. Qc2 Rf6) 21. Re5 $16 {[%emt 0:01:31]} g5 $2 {[%emt 0:00:54][%mdl 8192]} (21... Kh7 $16 {is more resistant.}) 22. Qg4 $18 {[%emt 0:04:19]} Ng7 {[%emt 0:01:04] [#]} 23. Bg3 {[%emt 0:00:15] This bishop pair is nice.} (23. Bxg5 $142 $1 {[%mdl 512]} Bxe6 24. Rxe6 hxg5 25. Rg6) 23... Rf6 {[%emt 0:01:30][%cal Rc8e6]} 24. Rae1 {[%emt 0:01:09]} ({Much less strong is} 24. Rxd5 $6 Qf8 $16) (24. Bxd5 $18 {is more deadly. aiming for h4.} Qe8 25. Rae1 (25. h4 gxh4 26. Qxh4 Bxe6 $14)) 24... a5 {[%emt 0:00:47]} 25. h4 {[%emt 0:02:50] White is much more active.} h5 $2 {[%emt 0:00:21][%mdl 8192]} (25... Rxe6 $16 {is tougher.} 26. Rxe6 Ra6) 26. Qxg5 {[%emt 0:00:12]} Ra6 {[%emt 0:00:31]} 27. Rxd5 {[%emt 0:00:27] White is clearly winning.} Qf8 {[%emt 0:00:12]} 28. Red1 {[%emt 0:00:12][%cal Be1d1,Bd1d8,Bd8c8][%mdl 32] [#] Rd8 is the strong threat.} Rf5 {[%emt 0:00:44]} 29. Rxf5 {[%emt 0:01:22]} Qxf5 {[%emt 0:00:02]} 30. Rd8+ {[%emt 0:00:09]} Kh7 {[%emt 0:00:13]} 31. Qxf5+ {[%emt 0:00:31]} Nxf5 {[%emt 0:00:03]} 32. Rxc8 {[%emt 0:00:05] Strongly threatening Be4.} Rxe6 {[%emt 0:00:15]} 33. Bh3 {[%emt 0:00:36]} Re1+ {[%emt 0:00:07]} 34. Kg2 {[%emt 0:00:05]} Nxg3 {[%emt 0:01:34]} 35. Kxg3 {[%emt 0:00:27]} Re2 {[%emt 0:00:09]} 36. a4 {[%emt 0:00:11] Weighted Error Value: White=0.28 (precise) /Black=0.91} 1-0

[Event "1st Chessable Sunway Formentera 2022"]
[Site "Formentera Punta Prima"]
[Date "2022.04.30"]
[Round "2"]
[White "Chiku-Ratte, Olivier-Kenta"]
[Black "Santos Latasa, Jaime"]
[Result "0-1"]
[ECO "E14"]
[WhiteElo "2358"]
[BlackElo "2672"]
[Annotator "TA"]
[PlyCount "80"]
[EventDate "2022.05.05"]
[EventType "swiss"]
[EventCountry "ESP"]
[SourceTitle "playchess.com"]
[Source "ChessBase"]
[SourceQuality "1"]
[TimeControl "40/5400+30:1800+30"]

{[%evp 16,80,-8,-11,-24,-21,-8,-56,5,-29,-33,-64,-68,-54,-50,-75,-75,-79,-67,-84,-73,-114,-113,-113,-120,-114,-106,-149,-79,-79,-78,-92,-92,-98,-101,-150,-151,-192,-197,-201,-201,-201,-201,-203,-196,-181,-160,-257,-268,-451,-428,-447,-457,-398,-365,-365,-358,-420,-417,-417,-416,-417,-409,-409,-409,-441,-435]} 1. d4 {[%emt 0:03:04]} Nf6 {[%emt 0:00:07]} 2. c4 {[%emt 0:00:46]} e6 {[%emt 0:00:06]} 3. Nf3 {[%emt 0:00:09]} d5 {[%emt 0:00:05]} 4. e3 {[%emt 0:03:34]} b6 {[%emt 0:00:23]} 5. Bd3 {[%emt 0:04:52]} Bb7 {[%emt 0:00:32]} 6. O-O {[%emt 0:00:05]} Bd6 {[%emt 0:00:05]} 7. Nc3 {[%emt 0:03:39]} O-O {[%emt 0:02:06]} 8. Qc2 {[%emt 0:12:11]} dxc4 $5 {[%emt 0:01:55][%mdl 4] Exploring less charted territory.} 9. Bxc4 {[%emt 0:00:21]} c5 {[%emt 0:00:51] E14: Queen's Indian: Classical Variation (4 e3).} 10. dxc5 {[%emt 0:07:18]} Bxc5 {[%emt 0:00:24]} 11. e4 {[%emt 0:03:18]} (11. Rd1 $11 {is superior.} Nbd7 12. b3) 11... Nc6 {[%emt 0:01:46]} (11... Nbd7 $15) 12. Bg5 {[%emt 0:08:19] [#]} Qc7 $146 {[%emt 0:11:21]} ({Predecessor:} 12... Nd4 13. Qd3 h6 14. Bh4 Nxf3+ 15. Qxf3 Qd4 16. Bd3 Rfd8 17. Rad1 Qe5 18. Qe2 Rd7 19. Bxf6 Qxf6 {0-1 (46) Kunin,V (2533)-Brkic,A (2583) Austria 2020}) 13. Bh4 {[%emt 0:14:06]} Ne5 {[%emt 0:02:17]} 14. Nxe5 {[%emt 0:03:36]} Qxe5 {[%emt 0:00:11]} 15. Rfe1 {[%emt 0:06:29]} Rac8 {[%emt 0:01:58]} 16. Bg3 {[%emt 0:10:34]} Qg5 {[%emt 0:00:45]} 17. Be2 {[%emt 0:01:30]} Rfd8 {[%emt 0:06:05]} 18. Rad1 {[%emt 0:09:26] [#] Against Rd2} h5 $1 {[%emt 0:05:38]} 19. Qc1 {[%emt 0:00:31]} Qxc1 {[%emt 0:00:55]} ({Much weaker is} 19... Nxe4 $6 20. Qxg5 Nxg5 21. Bxh5 $11) 20. Rxc1 {[%emt 0:00:20]} Rd2 {[%emt 0:02:12]} 21. e5 {[%emt 0:01:00]} Ng4 {[%emt 0:03:07]} (21... Nd5 $142 22. Bxh5 Rxb2) 22. h3 $17 {[%emt 0:01:22]} Nh6 {[%emt 0:00:09][%cal Bg4h6,Bh6f5,Bf5h4][%mdl 32] Black is much more active.} 23. Rb1 {[%emt 0:04:42] [#]} g5 $1 {[%emt 0:04:21] Inhibits Bf4.} ({Of course not} 23... Nf5 $6 24. Bf4 Rd4 25. Bg5 $11) 24. Red1 {[%emt 0:00:24]} Rcd8 {[%emt 0:00:23]} 25. Kf1 {[%emt 0:00:39]} ({White should try} 25. b4 Rxd1+ 26. Nxd1) 25... Nf5 {[%emt 0:01:25]} 26. Bh2 {[%emt 0:00:39]} Nh4 {[%emt 0:00:35]} 27. Rxd2 {[%emt 0:00:20]} Rxd2 {[%emt 0:00:06]} 28. Ke1 {[%emt 0:00:18]} Rd4 {[%emt 0:01:19]} 29. Bxh5 {[%emt 0:00:23]} Bxg2 {[%emt 0:01:59] Hoping for ...Bf3.} 30. Ke2 {[%emt 0:00:47] Inhibits Bf3+.} Bxh3 {[%emt 0:01:02]} 31. Rg1 {[%emt 0:00:34]} (31. Rd1 $17 {keeps fighting.}) 31... g4 $19 {[%emt 0:00:37] And now ...Nf3 would win.} 32. Rg3 {[%emt 0:00:41]} (32. Rd1) 32... Nf3 {[%emt 0:00:20] ( -> ...Rd2#)} 33. Rxf3 {[%emt 0:00:29]} gxf3+ {[%emt 0:00:08]} 34. Bxf3 {[%emt 0:00:03]} Bg4 {[%emt 0:00:15]} 35. Bxg4 {[%emt 0:00:38]} Rxg4 {[%emt 0:00:06] KRB-KBN} 36. Kf3 {[%emt 0:00:21]} Rc4 {[%emt 0:00:17]} 37. Ke2 {[%emt 0:00:13]} Kg7 {[%emt 0:00:42]} 38. Bg3 {[%emt 0:00:20]} Kg6 {[%emt 0:00:23]} 39. Kd3 {[%emt 0:00:13]} Rd4+ {[%emt 0:00:10]} 40. Ke2 {[%emt 0:00:00]} Bb4 {[%emt 0:00:00] Weighted Error Value: White=0.23 (precise) /Black=0.08 (flawless)} 0-1

[Event "1st Chessable Sunway Formentera 2022"]
[Site "Formentera Punta Prima"]
[Date "2022.04.30"]
[Round "2"]
[White "Bergez, Luc"]
[Black "Sargsyan, Shant"]
[Result "0-1"]
[ECO "B20"]
[WhiteElo "2331"]
[BlackElo "2641"]
[Annotator "TA"]
[PlyCount "106"]
[EventDate "2022.05.05"]
[EventType "swiss"]
[EventCountry "ESP"]
[SourceTitle "playchess.com"]
[Source "ChessBase"]
[SourceQuality "1"]
[TimeControl "40/5400+30:1800+30"]

{[%evp 13,106,-2,2,-14,-15,-21,-24,-19,-20,-22,-19,-26,-24,-20,-16,-34,-31,-40,-42,-40,-33,-42,-32,-37,-15,-37,-37,-47,-24,-83,-87,-103,-88,-85,-72,-64,-67,-55,-74,-28,-35,-65,-68,-50,-29,-68,-116,-93,0,0,0,-125,0,-22,0,-154,0,0,0,0,0,-8,-11,-11,-34,-84,-79,-197,-195,-183,-177,-211,-79,-743,-635,-586,-556,-737,-729,-614,-555,-589,-737,-612,-710,-1292,-1127,-4134,-1385,-29962,-29966,-29968,-29967,-4710,-2618]} 1. e4 {[%emt 0:00:04]} c5 {[%emt 0:01:04]} 2. d3 {[%emt 0:00:09]} Nc6 {[%emt 0:00:27]} 3. g3 {[%emt 0:00:13]} Nf6 {[%emt 0:00:21]} 4. f4 {[%emt 0:05:36]} d6 {[%emt 0:03:37]} 5. Bg2 {[%emt 0:00:57]} g6 {[%emt 0:00:32]} 6. Nf3 {[%emt 0:01:10]} Bg7 {[%emt 0:00:28]} 7. O-O {[%emt 0:00:38]} O-O {[%emt 0:00:42]} 8. Na3 {[%emt 0:03:35] B20: Sicilian: Unusual White 2nd moves.} Rb8 {[%emt 0:01:34]} 9. c3 {[%emt 0:05:47]} b5 {[%emt 0:00:41][%cal Bb7b5,Bb5b4][%mdl 32]} 10. Nc2 {[%emt 0:05:06] Black has an edge.} b4 {[%emt 0:01:28]} 11. c4 {[%emt 0:01:36]} Bg4 {[%emt 0:02:00]} 12. h3 {[%emt 0:03:23]} Bxf3 {[%emt 0:02:07]} 13. Bxf3 {[%emt 0:00:10][%cal Oe4e5]} Nd7 {[%emt 0:00:55] [#] Inhibits e5.} 14. Kg2 $146 {[%emt 0:01:43]} ({Predecessor:} 14. h4 Rb6 15. h5 a5 16. hxg6 hxg6 17. Ne3 Nd4 18. Kg2 e6 19. Rh1 Re8 20. Qg1 {1-0 (46) Kalinin,O (2390)-Kalod,R (2445) Guben 2000}) 14... a5 {[%emt 0:06:15]} 15. Ne1 {[%emt 0:08:36]} Nd4 {[%emt 0:01:54]} 16. Rb1 {[%emt 0:06:14]} b3 {[%emt 0:04:08]} 17. a3 {[%emt 0:00:21]} e6 {[%emt 0:00:12]} 18. Bd2 {[%emt 0:05:21]} f5 {[%emt 0:03:27]} 19. Kh2 {[%emt 0:01:47]} a4 {[%emt 0:03:31]} 20. Bg2 {[%emt 0:00:16]} Nb6 {[%emt 0:02:01] Pair of Knights!} 21. Bc3 {[%emt 0:13:48]} (21. Nf3 fxe4 22. Nxd4 Bxd4 23. Bxe4 Qf6 $15) (21. exf5 $1 $11 exf5 22. Nf3) 21... fxe4 $17 {[%emt 0:00:43]} 22. Bxe4 {[%emt 0:00:10]} d5 {[%emt 0:03:28]} 23. cxd5 {[%emt 0:02:24]} exd5 {[%emt 0:03:24]} 24. Bg2 {[%emt 0:01:14]} Qd6 {[%emt 0:01:55]} 25. Bxd4 {[%emt 0:09:26]} Bxd4 {[%emt 0:00:16]} 26. Nf3 {[%emt 0:00:11]} Be3 {[%emt 0:04:36]} 27. d4 {[%emt 0:03:31]} cxd4 {[%emt 0:01:09] Black is much more active.} 28. Nxd4 {[%emt 0:01:02]} Rbc8 {[%emt 0:07:09]} 29. Qd3 {[%emt 0:03:07]} Bxd4 {[%emt 0:00:55]} 30. Qxd4 {[%emt 0:00:09]} Rc4 {[%emt 0:00:35]} (30... Qf6 $1 $17 {[%cal Rf6d4]} 31. Bxd5+ Kg7 32. Qxf6+ Kxf6) 31. Qd3 $11 {[%emt 0:02:08]} Rc2 {[%emt 0:00:12]} 32. Kh1 {[%emt 0:00:34]} (32. Rfc1 $11) 32... Qf6 {[%emt 0:01:53]} ({Black should try} 32... Qc5 $1 $17 33. f5 Qc4) 33. Rfe1 {[%emt 0:02:48] Inhibits Re8.} Rxb2 {[%emt 0:07:02]} 34. Rbc1 {[%emt 0:01:39]} (34. Rxb2 $11 Qxb2 35. Re6) 34... Ra2 $2 {[%emt 0:03:05]} ({Better is} 34... Rf7 $1 $17 {aiming for ...Kg7.} 35. Qb5 (35. Bxd5 $2 Nxd5 36. Qxd5 Qf5 $19) 35... Rc2 36. Rxc2 bxc2) 35. Rc7 $1 {[%emt 0:01:53] Strongly threatening Ree7.} Rf7 {[%emt 0:16:55] Against Ree7} (35... Rxa3 $2 36. Bxd5+ Nxd5 37. Qxd5+ Rf7 38. Rxf7 Qxf7 39. Re8+ Kg7 40. Qe5+ Kh6 41. Re7 $18) 36. Bxd5 {[%emt 0:02:28]} Nxd5 {[%emt 0:00:12]} 37. Qxd5 {[%emt 0:00:08]} Ra1 $40 {[%emt 0:01:07][%mdl 128] White needs to defend precisely. Chess con chili.} 38. Rxa1 {[%emt 0:01:19]} Qxa1+ {[%emt 0:00:04][%mdl 4096] Endgame KQR-KQR} 39. Kg2 {[%emt 0:00:09]} (39. Kh2 $1 $15 Qb2+ 40. Kg1) 39... Qf6 $17 {[%emt 0:00:54]} 40. Rc4 {[%emt 0:00:00]} (40. Qc4 $17 {was worth a try.}) 40... Qe7 $19 {[%emt 0:00:00] Hoping for ...Qe2+.} ({Stronger than} 40... Kg7 41. h4 $17) 41. Rb4 {[%emt 0:12:25]} Qe2+ {[%emt 0:21:36]} 42. Kg1 {[%emt 0:00:38] [#]} Kg7 {[%emt 0:00:29]} (42... Qe3+ $1 $19 {is more deadly.} 43. Kg2 Kg7) 43. Qe5+ $2 {[%emt 0:07:11][%mdl 8192] This move loses the game for White.} (43. Qd4+ $17 Kh6 44. f5 Rxf5 45. Qh4+ Qh5 46. Rxa4) 43... Qxe5 {[%emt 0:00:12]} 44. fxe5 {[%emt 0:00:03] KR-KR} Re7 {[%emt 0:04:39]} 45. Rb5 {[%emt 0:00:07]} Rc7 {[%emt 0:00:53] And now ...Rc2 would win.} 46. Kf2 {[%emt 0:00:08]} Rc2+ {[%emt 0:01:31]} 47. Kf3 {[%emt 0:00:09] [#]} Ra2 $1 {[%emt 0:00:56]} 48. Rb7+ {[%emt 0:00:26]} Kf8 {[%emt 0:00:34]} 49. Kf4 {[%emt 0:10:49]} Rxa3 {[%emt 0:01:04]} 50. e6 {[%emt 0:03:45]} Ra1 {[%emt 0:02:27]} 51. Ke5 {[%emt 0:02:26]} Re1+ {[%emt 0:01:26]} 52. Kf6 {[%emt 0:00:40]} Rf1+ {[%emt 0:00:04]} 53. Ke5 {[%emt 0:00:08]} a3 {[%emt 0:01:57] Weighted Error Value: White=0.73/Black=0.13 (very precise)} 0-1

[Event "1st Chessable Sunway Formentera 2022"]
[Site "Formentera Punta Prima"]
[Date "2022.04.30"]
[Round "2"]
[White "Garcia Martin, Marta"]
[Black "Cuenca Jimenez, Jose Fernando"]
[Result "0-1"]
[ECO "B07"]
[WhiteElo "2326"]
[BlackElo "2551"]
[Annotator "TA"]
[PlyCount "120"]
[EventDate "2022.05.05"]
[EventType "swiss"]
[EventCountry "ESP"]
[SourceTitle "playchess.com"]
[Source "ChessBase"]
[SourceQuality "1"]
[TimeControl "40/5400+30:1800+30"]

{[%evp 9,120,25,25,24,20,18,29,24,23,9,12,10,18,26,36,31,37,27,31,25,33,29,40,25,50,70,99,85,122,110,131,107,108,82,193,183,194,181,281,286,355,340,1008,964,1255,602,566,382,345,0,379,0,380,271,256,258,268,268,268,259,260,257,225,160,205,71,60,75,51,44,41,0,0,0,0,0,0,0,0,0,0,0,0,0,0,-8,-8,-65,-77,-114,-68,-66,-64,-1084,-1169,-1135,-1125,-1110,-1085,-979,-957,-4618,-4618,-29982,-29983,-29983,-29984,-29984,-29985,-29985,-29986,-29986,-29987]} 1. e4 {[%emt 0:00:19]} d6 {[%emt 0:00:58]} 2. d4 {[%emt 0:00:14]} Nf6 {[%emt 0:00:07]} 3. Nc3 {[%emt 0:00:18]} e5 {[%emt 0:00:10]} 4. Nge2 {[%emt 0:00:49]} Be7 {[%emt 0:00:35]} 5. g3 {[%emt 0:00:25]} O-O {[%emt 0:00:52]} 6. Bg2 {[%emt 0:00:08] B07: Pirc Defence: Miscellaneous Systems.} c6 {[%emt 0:00:15]} 7. a4 {[%emt 0:00:34]} a5 {[%emt 0:00:07]} 8. O-O {[%emt 0:00:52] White has an edge.} Na6 {[%emt 0:00:12]} 9. h3 {[%emt 0:01:35]} Nb4 {[%emt 0:00:06]} 10. f4 {[%emt 0:01:39]} exd4 {[%emt 0:06:59]} 11. Nxd4 {[%emt 0:00:15]} d5 {[%emt 0:00:08]} 12. e5 $1 {[%emt 0:04:53]} Nd7 {[%emt 0:00:23]} 13. Kh2 {[%emt 0:11:44]} Re8 {[%emt 0:03:37] [#]} 14. b3 $146 {[%emt 0:31:40]} ({Predecessor:} 14. Be3 Bf8 15. Bg1 Nc5 16. Qd2 f6 {½-½ (16) Pruijssers,R (2408)-Dresen,U (2315) Germany 2007}) 14... Bf8 {[%emt 0:12:40]} 15. Bb2 {[%emt 0:00:57]} Nc5 {[%emt 0:00:58]} 16. Qd2 $1 {[%emt 0:01:45]} f6 {[%emt 0:00:51]} 17. Rae1 {[%emt 0:04:01]} Bd7 {[%emt 0:07:57]} 18. Nd1 $1 {[%emt 0:02:42][%cal Bc3d1,Bd1e3,Be3g4][%mdl 32]} fxe5 {[%emt 0:04:46]} 19. fxe5 {[%emt 0:01:42]} Ne6 {[%emt 0:07:12]} 20. Nf5 $1 {[%emt 0:04:19]} (20. Qf2 Bc5 21. Re2 (21. c3 Nd3 $19) 21... Rf8 $11) 20... Qg5 {[%emt 0:03:08]} 21. Nde3 {[%emt 0:02:05] And now Qd1 would win.} Rad8 {[%emt 0:15:33]} (21... Bc5 $16) 22. h4 {[%emt 0:11:06]} Qg6 {[%emt 0:00:48]} 23. Qe2 {[%emt 0:01:19]} h6 {[%emt 0:22:28]} (23... Bc5 {might work better.} 24. c3 Bxe3) 24. Bf3 $18 {[%emt 0:01:56] Strongly threatening Bh5.} Qh7 {[%emt 0:00:10][%cal Oe6f4]} 25. Bh5 {[%emt 0:01:33]} g6 $2 {[%emt 0:00:09] [#]} (25... Kh8 26. Bxe8 Bxe8) 26. Ng4 $1 {[%emt 0:08:10]} Bg7 {[%emt 0:08:31]} (26... Kh8 27. Nf6) 27. Nfxh6+ {[%emt 0:04:46]} Kh8 {[%emt 0:00:12]} 28. Nf7+ {[%emt 0:00:11]} Kg8 {[%emt 0:00:02]} 29. Nfh6+ {[%emt 0:00:22]} Kh8 {[%emt 0:00:11]} 30. Nf7+ {[%emt 0:00:02]} Kg8 {[%emt 0:00:02] [#]} 31. Nd6 $1 {[%emt 0:03:03]} Qxh5 {[%emt 0:01:12] [#]} (31... gxh5 $2 32. Nf6+ Bxf6 33. exf6 $18) 32. Nf6+ $1 {[%emt 0:00:12]} ({Weaker is} 32. Qf3 Rf8 33. Nf6+ Bxf6 34. Qxh5 gxh5 $17) ({Inferior is} 32. Nxe8 Rxe8 33. Nf6+ (33. Qf3 Rf8 $17) 33... Bxf6 34. exf6 Qxe2+ 35. Rxe2 Kf7 $17) 32... Bxf6 {[%emt 0:00:28] [#]} 33. Qxh5 {[%emt 0:00:43]} gxh5 {[%emt 0:00:04]} 34. exf6 {[%emt 0:00:04] f7+ is the strong threat.} Rf8 {[%emt 0:01:11]} 35. f7+ {[%emt 0:00:06]} Kh7 {[%emt 0:00:04]} 36. Bf6 {[%emt 0:01:25] aiming for Rxe6.} ({And not} 36. Nxb7 Rb8 37. Nd6 Nxc2 $11) 36... Rb8 {[%emt 0:01:41]} 37. Be7 {[%emt 0:00:29]} (37. Re5 $18 {and the rest is easy.} Nxc2 38. Rxh5+ Kg6 39. Re5) 37... Nxc2 $16 {[%emt 0:01:46]} 38. Re5 {[%emt 0:00:08]} Ng7 {[%emt 0:00:52][%cal Oc2d4]} 39. Bxf8 {[%emt 0:00:50]} Rxf8 {[%emt 0:00:01]} 40. Nxb7 {[%emt 0:00:00]} (40. Re7 $5 {[%cal Re7d7]} Bg4 41. Re8 $11) 40... Nd4 {[%emt 0:00:00]} 41. Nxa5 {[%emt 0:06:57]} Bg4 {[%emt 0:09:03]} 42. Kg2 {[%emt 0:07:53] Prevents Nf3.} Ngf5 {[%emt 0:02:07] Pair of Knights!} 43. Nxc6 {[%emt 0:06:20]} Nxc6 {[%emt 0:00:50][%cal Bd4c6,Bc6e7,Be7f5,Bf5h4][%mdl 32] Dancing on a razor blade.} 44. Rexf5 {[%emt 0:00:07]} Bxf5 {[%emt 0:00:02]} 45. Rxf5 $11 {[%emt 0:00:07][%mdl 4096] Endgame KRN-KR} Ne7 {[%emt 0:01:18]} 46. Re5 {[%emt 0:07:36]} Rxf7 {[%emt 0:00:05]} 47. a5 {[%emt 0:00:59]} Nf5 {[%emt 0:09:20]} 48. Kf3 {[%emt 0:04:36]} ({Better is} 48. b4 $11) 48... Nxh4+ $1 $15 {[%emt 0:00:47]} 49. Ke2 {[%emt 0:00:31]} Nf5 {[%emt 0:00:09]} 50. Rxd5 {[%emt 0:00:16]} Nxg3+ {[%emt 0:00:34]} 51. Ke3 $2 {[%emt 0:00:03][%mdl 8192]} (51. Kd3 $15) 51... h4 $19 {[%emt 0:00:31]} 52. Rg5 {[%emt 0:01:03]} Kh6 {[%emt 0:02:19]} 53. Rg8 {[%emt 0:00:19]} Nf5+ {[%emt 0:00:48]} 54. Ke4 {[%emt 0:00:43]} Kh5 {[%emt 0:01:01] White must now prevent ...h3.} 55. a6 {[%emt 0:00:37]} h3 {[%emt 0:07:42] ( -> ...h2)} 56. a7 {[%emt 0:00:08]} h2 {[%emt 0:00:36] Black mates.} 57. Rh8+ {[%emt 0:00:17]} Nh6 {[%emt 0:00:24]} 58. a8=Q {[%emt 0:00:17]} h1=Q+ {[%emt 0:00:05]} 59. Kd4 {[%emt 0:01:17]} Qd1+ {[%emt 0:01:13]} 60. Kc4 {[%emt 0:00:29]} Rc7+ {[%emt 0:00:33] Never resign too early!  Weighted Error Value: White=0.74/Black=0.12 (very precise)} 0-1